[Event "Titled Tuesday Blitz May 31 Early 2022"]
[White "Taboas Rodriguez, Daniel"]
[Black "Urazayev, Arystanbek"]
[WhiteFideId "2208466"]
[BlackFideId "13709810"]
[WhiteElo "2429"]
[BlackElo "2422"]
[Result "1-0"]
[Round "03"]
[TimeControl "180+1"]
[Date "2022.06.01"]
[WhiteClock "0:00:08"]
[BlackClock "0:00:10"]

1. d4 {[%clk 0:03:00]}  d5 {[%clk 0:03:00]} 2. c4 {[%clk 0:02:59]}  e6 {[%clk 0:03:00]} 3. Nc3 {[%clk 0:02:59]}  a6 {[%clk 0:03:00]} 4. cxd5 {[%clk 0:02:53]}  exd5 {[%clk 0:03:01]} 5. Qc2 {[%clk 0:02:53]}  Nf6 {[%clk 0:02:59]} 6. Bg5 {[%clk 0:02:53]}  Be6 {[%clk 0:02:54]} 7. e3 {[%clk 0:02:50]}  Nbd7 {[%clk 0:02:54]} 8. Bd3 {[%clk 0:02:51]}  Bd6 {[%clk 0:02:53]} 9. Nge2 {[%clk 0:02:50]}  c6 {[%clk 0:02:54]} 10. Nf4 {[%clk 0:02:50]}  Qc7 {[%clk 0:02:49]} 11. Nxe6 {[%clk 0:02:41]}  fxe6 {[%clk 0:02:50]} 12. e4 {[%clk 0:02:37]}  dxe4 {[%clk 0:02:41]} 13. Nxe4 {[%clk 0:02:38]}  Nxe4 {[%clk 0:02:39]} 14. Bxe4 {[%clk 0:02:39]}  Bb4+ {[%clk 0:02:39]} 15. Bd2 {[%clk 0:02:38]}  Qa5 {[%clk 0:02:38]} 16. a3 {[%clk 0:02:34]}  Bxd2+ {[%clk 0:02:38]} 17. Qxd2 {[%clk 0:02:35]}  Qxd2+ {[%clk 0:02:39]} 18. Kxd2 {[%clk 0:02:36]}  O-O-O {[%clk 0:02:39]} 19. Kc3 {[%clk 0:02:34]}  Nf6 {[%clk 0:02:38]} 20. Rae1 {[%clk 0:02:30]}  Rd6 {[%clk 0:02:35]} 21. Bf3 {[%clk 0:02:19]}  Rhd8 {[%clk 0:02:35]} 22. Rd1 {[%clk 0:02:20]}  Nd5+ {[%clk 0:02:34]} 23. Kc2 {[%clk 0:02:19]}  Ne7 {[%clk 0:02:33]} 24. Rhe1 {[%clk 0:02:19]}  Nf5 {[%clk 0:02:33]} 25. Kc3 {[%clk 0:02:07]}  Nxd4 {[%clk 0:02:33]} 26. Bg4 {[%clk 0:01:55]}  Nb5+ {[%clk 0:02:29]} 27. Kc4 {[%clk 0:01:55]}  Rxd1 {[%clk 0:02:29]} 28. Rxd1 {[%clk 0:01:55]}  Rxd1 {[%clk 0:02:28]} 29. Bxd1 {[%clk 0:01:56]}  Kd7 {[%clk 0:02:26]} 30. a4 {[%clk 0:01:45]}  Nd6+ {[%clk 0:02:25]} 31. Kd4 {[%clk 0:01:46]}  Nf7 {[%clk 0:02:13]} 32. Kc5 {[%clk 0:01:44]}  Kc7 {[%clk 0:02:13]} 33. a5 {[%clk 0:01:44]}  Ne5 {[%clk 0:02:04]} 34. Bc2 {[%clk 0:01:37]}  Nd7+ {[%clk 0:01:59]} 35. Kd4 {[%clk 0:01:38]}  h6 {[%clk 0:02:00]} 36. f4 {[%clk 0:01:28]}  Kd6 {[%clk 0:02:00]} 37. b4 {[%clk 0:01:27]}  e5+ {[%clk 0:01:52]} 38. fxe5+ {[%clk 0:01:27]}  Nxe5 {[%clk 0:01:53]} 39. h4 {[%clk 0:01:22]}  Nd7 {[%clk 0:01:47]} 40. Ke4 {[%clk 0:01:14]}  Nf6+ {[%clk 0:01:39]} 41. Kf5 {[%clk 0:01:12]}  Ke7 {[%clk 0:01:39]} 42. Bb3 {[%clk 0:01:05]}  Ne8 {[%clk 0:01:14]} 43. Kg6 {[%clk 0:01:00]}  Kf8 {[%clk 0:01:14]} 44. Kf5 {[%clk 0:00:46]}  Nc7 {[%clk 0:01:11]} 45. Ke5 {[%clk 0:00:46]}  Ke7 {[%clk 0:01:11]} 46. g4 {[%clk 0:00:43]}  Nb5 {[%clk 0:01:05]} 47. g5 {[%clk 0:00:31]}  hxg5 {[%clk 0:01:06]} 48. hxg5 {[%clk 0:00:32]}  Nd6 {[%clk 0:01:06]} 49. Be6 {[%clk 0:00:27]}  g6 {[%clk 0:00:35]} 50. Bb3 {[%clk 0:00:25]}  Nb5 {[%clk 0:00:21]} 51. Bc2 {[%clk 0:00:22]}  Kf7 {[%clk 0:00:21]} 52. Bd3 {[%clk 0:00:20]}  Nc3 {[%clk 0:00:20]} 53. Kd6 {[%clk 0:00:16]}  Kg7 {[%clk 0:00:12]} 54. Bc4 {[%clk 0:00:08]}  Ne4+ {[%clk 0:00:11]} 55. Kc7 {[%clk 0:00:08]}  Nxg5 {[%clk 0:00:12]} 56. Kxb7 {[%clk 0:00:09]}  Ne4 {[%clk 0:00:07]} 57. Kxa6 {[%clk 0:00:09]}  g5 {[%clk 0:00:07]} 58. Kb6 {[%clk 0:00:07]}  g4 {[%clk 0:00:05]} 59. a6 {[%clk 0:00:08]}  Nd6 {[%clk 0:00:05]} 60. Bf1 {[%clk 0:00:07]}  g3 {[%clk 0:00:04]} 61. a7 {[%clk 0:00:06]}  Nc8+ {[%clk 0:00:04]} 62. Kb7 {[%clk 0:00:07]}  Nd6+ {[%clk 0:00:04]} 63. Kxc6 {[%clk 0:00:07]}  Nf5 {[%clk 0:00:04]} 64. a8=Q {[%clk 0:00:07]}  Nd4+ {[%clk 0:00:05]} 65. Kd5 {[%clk 0:00:07]}  Nf3 {[%clk 0:00:06]} 66. Qb7+ {[%clk 0:00:07]}  Kh6 {[%clk 0:00:06]} 67. Qb6+ {[%clk 0:00:06]}  Kg5 {[%clk 0:00:06]} 68. Qe3+ {[%clk 0:00:07]}  Kg4 {[%clk 0:00:07]} 69. Be2 {[%clk 0:00:07]}  Kh3 {[%clk 0:00:08]} 70. Qxf3 {[%clk 0:00:07]}  Kh2 {[%clk 0:00:09]} 71. Bf1 {[%clk 0:00:07]}  Kg1 {[%clk 0:00:10]} 72. Qg2# {[%clk 0:00:08]} 1-0


[Site "https://www.chess.com"]

[Event "Titled Tuesday Blitz May 31 Early 2022"]
[White "Tahbaz, Arash"]
[Black "Maltsevskaya, Aleksandra"]
[WhiteFideId "12528846"]
[BlackFideId "24174041"]
[WhiteElo "2381"]
[BlackElo "2235"]
[Result "0-1"]
[Round "03"]
[TimeControl "180+1"]
[Date "2022.05.31"]
[WhiteClock "0:00:09"]
[BlackClock "0:00:13"]

1. Nf3 {[%clk 0:03:00]}  d5 {[%clk 0:02:58]} 2. g3 {[%clk 0:02:55]}  c6 {[%clk 0:02:58]} 3. Bg2 {[%clk 0:02:55]}  Bg4 {[%clk 0:02:59]} 4. O-O {[%clk 0:02:56]}  Nd7 {[%clk 0:02:57]} 5. d3 {[%clk 0:02:56]}  Ngf6 {[%clk 0:02:56]} 6. Nbd2 {[%clk 0:02:57]}  e5 {[%clk 0:02:55]} 7. e4 {[%clk 0:02:56]}  Bc5 {[%clk 0:02:54]} 8. h3 {[%clk 0:02:55]}  Bxf3 {[%clk 0:02:54]} 9. Qxf3 {[%clk 0:02:55]}  O-O {[%clk 0:02:54]} 10. Qe2 {[%clk 0:02:55]}  a5 {[%clk 0:02:48]} 11. a4 {[%clk 0:02:54]}  Bb6 {[%clk 0:02:45]} 12. Nb3 {[%clk 0:02:47]}  h6 {[%clk 0:02:43]} 13. Bd2 {[%clk 0:02:46]}  Nc5 {[%clk 0:02:38]} 14. Nxc5 {[%clk 0:02:44]}  Bxc5 {[%clk 0:02:39]} 15. Rad1 {[%clk 0:02:41]}  dxe4 {[%clk 0:02:35]} 16. dxe4 {[%clk 0:02:40]}  Qb6 {[%clk 0:02:35]} 17. Bc3 {[%clk 0:02:35]}  Rfe8 {[%clk 0:02:32]} 18. b3 {[%clk 0:02:21]}  Nh7 {[%clk 0:02:15]} 19. Kh2 {[%clk 0:02:19]}  Nf8 {[%clk 0:02:13]} 20. f4 {[%clk 0:02:17]}  exf4 {[%clk 0:02:08]} 21. gxf4 {[%clk 0:02:14]}  Rad8 {[%clk 0:02:08]} 22. Rd3 {[%clk 0:01:47]}  Rxd3 {[%clk 0:02:02]} 23. Qxd3 {[%clk 0:01:48]}  Ne6 {[%clk 0:02:02]} 24. f5 {[%clk 0:01:43]}  Qc7+ {[%clk 0:01:54]} 25. Kh1 {[%clk 0:01:43]}  Rd8 {[%clk 0:01:28]} 26. Qc4 {[%clk 0:01:21]}  b5 {[%clk 0:01:20]} 27. axb5 {[%clk 0:01:22]}  cxb5 {[%clk 0:01:21]} 28. Qxb5 {[%clk 0:01:22]}  Nd4 {[%clk 0:01:16]} 29. Qc4 {[%clk 0:01:19]}  Nxc2 {[%clk 0:01:07]} 30. Bxa5 {[%clk 0:01:00]}  Qxa5 {[%clk 0:01:04]} 31. Qxc2 {[%clk 0:01:00]}  Bd4 {[%clk 0:01:01]} 32. Rd1 {[%clk 0:00:59]}  Be5 {[%clk 0:01:02]} 33. Bf3 {[%clk 0:00:31]}  Rxd1+ {[%clk 0:00:55]} 34. Qxd1 {[%clk 0:00:32]}  Qa2 {[%clk 0:00:55]} 35. Be2 {[%clk 0:00:32]}  Qa7 {[%clk 0:00:47]} 36. Kg2 {[%clk 0:00:30]}  Qe3 {[%clk 0:00:47]} 37. Qd3 {[%clk 0:00:29]}  Qg5+ {[%clk 0:00:46]} 38. Kf1 {[%clk 0:00:28]}  Qc1+ {[%clk 0:00:44]} 39. Kf2 {[%clk 0:00:28]}  Qf4+ {[%clk 0:00:43]} 40. Qf3 {[%clk 0:00:23]}  Bd4+ {[%clk 0:00:43]} 41. Kg2 {[%clk 0:00:23]}  Qg5+ {[%clk 0:00:42]} 42. Qg3 {[%clk 0:00:24]}  Qc1 {[%clk 0:00:42]} 43. Bf1 {[%clk 0:00:17]}  Qb2+ {[%clk 0:00:36]} 44. Kh1 {[%clk 0:00:16]}  Be5 {[%clk 0:00:36]} 45. Qg2 {[%clk 0:00:15]}  Qxb3 {[%clk 0:00:37]} 46. Be2 {[%clk 0:00:15]}  Qe3 {[%clk 0:00:35]} 47. Bf1 {[%clk 0:00:15]}  Bg3 {[%clk 0:00:30]} 48. Qe2 {[%clk 0:00:15]}  Qg5 {[%clk 0:00:22]} 49. Qg4 {[%clk 0:00:13]}  Qe3 {[%clk 0:00:22]} 50. Qe2 {[%clk 0:00:13]}  Qc5 {[%clk 0:00:21]} 51. Kg2 {[%clk 0:00:12]}  Be5 {[%clk 0:00:21]} 52. Qa2 {[%clk 0:00:12]}  Qe3 {[%clk 0:00:20]} 53. Qe2 {[%clk 0:00:12]}  Qg3+ {[%clk 0:00:20]} 54. Kh1 {[%clk 0:00:12]}  Bd4 {[%clk 0:00:20]} 55. Qg2 {[%clk 0:00:12]}  Qe3 {[%clk 0:00:21]} 56. Be2 {[%clk 0:00:12]}  Kh7 {[%clk 0:00:20]} 57. Bf1 {[%clk 0:00:12]}  Qe1 {[%clk 0:00:18]} 58. Qe2 {[%clk 0:00:10]}  Qh4 {[%clk 0:00:14]} 59. Kg2 {[%clk 0:00:10]}  Qg5+ {[%clk 0:00:13]} 60. Qg4 {[%clk 0:00:10]}  Qe3 {[%clk 0:00:13]} 61. Qf3 {[%clk 0:00:09]}  Qg1# {[%clk 0:00:13]} 0-1


[Site "https://www.chess.com"]

[Event "Titled Tuesday Blitz May 31 Early 2022"]
[White "Vidit, Santosh Gujrathi"]
[Black "Gaehwiler, Gabriel"]
[WhiteFideId "5029465"]
[BlackFideId "1314530"]
[WhiteElo "2654"]
[BlackElo "2383"]
[Result "0-1"]
[Round "03"]
[TimeControl "180+1"]
[Date "2022.05.31"]
[WhiteClock "0:00:01"]
[BlackClock "0:00:13"]

1. Nf3 {[%clk 0:03:00]}  Nf6 {[%clk 0:02:58]} 2. c4 {[%clk 0:02:59]}  g6 {[%clk 0:02:57]} 3. Nc3 {[%clk 0:02:58]}  Bg7 {[%clk 0:02:58]} 4. g3 {[%clk 0:02:56]}  b6 {[%clk 0:02:56]} 5. Bg2 {[%clk 0:02:52]}  Bb7 {[%clk 0:02:56]} 6. O-O {[%clk 0:02:44]}  O-O {[%clk 0:02:55]} 7. Re1 {[%clk 0:02:44]}  c5 {[%clk 0:02:47]} 8. e4 {[%clk 0:02:42]}  d6 {[%clk 0:02:47]} 9. d4 {[%clk 0:02:42]}  cxd4 {[%clk 0:02:47]} 10. Nxd4 {[%clk 0:02:42]}  Qd7 {[%clk 0:02:39]} 11. h3 {[%clk 0:02:19]}  Rc8 {[%clk 0:02:38]} 12. b3 {[%clk 0:02:18]}  Nc6 {[%clk 0:02:35]} 13. Be3 {[%clk 0:02:17]}  Nxd4 {[%clk 0:02:27]} 14. Bxd4 {[%clk 0:02:18]}  Ne8 {[%clk 0:02:26]} 15. Bxg7 {[%clk 0:02:12]}  Nxg7 {[%clk 0:02:27]} 16. Qd2 {[%clk 0:02:08]}  Re8 {[%clk 0:02:23]} 17. Re3 {[%clk 0:02:02]}  Rad8 {[%clk 0:02:22]} 18. Rae1 {[%clk 0:02:01]}  Qc8 {[%clk 0:02:21]} 19. h4 {[%clk 0:01:59]}  Qc5 {[%clk 0:02:21]} 20. Bh3 {[%clk 0:01:54]}  Bc8 {[%clk 0:02:18]} 21. Bxc8 {[%clk 0:01:52]}  Rxc8 {[%clk 0:02:19]} 22. Nd5 {[%clk 0:01:51]}  Rcd8 {[%clk 0:01:57]} 23. g4 {[%clk 0:01:44]}  Qc8 {[%clk 0:01:55]} 24. Rg3 {[%clk 0:01:40]}  Ne6 {[%clk 0:01:48]} 25. f4 {[%clk 0:01:26]}  Nc7 {[%clk 0:01:35]} 26. Nc3 {[%clk 0:01:13]}  Qe6 {[%clk 0:01:30]} 27. Kg2 {[%clk 0:01:05]}  Rb8 {[%clk 0:01:27]} 28. a4 {[%clk 0:00:59]}  a6 {[%clk 0:01:25]} 29. Qd4 {[%clk 0:00:38]}  Rec8 {[%clk 0:01:17]} 30. f5 {[%clk 0:00:35]}  Qe5 {[%clk 0:01:17]} 31. Qxe5 {[%clk 0:00:33]}  dxe5 {[%clk 0:01:18]} 32. Rd1 {[%clk 0:00:23]}  b5 {[%clk 0:01:15]} 33. axb5 {[%clk 0:00:17]}  axb5 {[%clk 0:01:16]} 34. c5 {[%clk 0:00:13]}  b4 {[%clk 0:00:51]} 35. Na4 {[%clk 0:00:13]}  Na6 {[%clk 0:00:42]} 36. Rd5 {[%clk 0:00:13]}  f6 {[%clk 0:00:42]} 37. Rgd3 {[%clk 0:00:12]}  Kf7 {[%clk 0:00:41]} 38. Rd2 {[%clk 0:00:12]}  Rc7 {[%clk 0:00:39]} 39. Rc2 {[%clk 0:00:12]}  Rbc8 {[%clk 0:00:38]} 40. Kf3 {[%clk 0:00:12]}  Nb8 {[%clk 0:00:31]} 41. Nb6 {[%clk 0:00:12]}  Rg8 {[%clk 0:00:30]} 42. Ke3 {[%clk 0:00:08]}  Nc6 {[%clk 0:00:30]} 43. g5 {[%clk 0:00:06]}  gxf5 {[%clk 0:00:20]} 44. exf5 {[%clk 0:00:07]}  fxg5 {[%clk 0:00:20]} 45. hxg5 {[%clk 0:00:08]}  Rxg5 {[%clk 0:00:21]} 46. Rh2 {[%clk 0:00:08]}  Rg3+ {[%clk 0:00:19]} 47. Kf2 {[%clk 0:00:07]}  Rxb3 {[%clk 0:00:19]} 48. Rxh7+ {[%clk 0:00:08]}  Kf6 {[%clk 0:00:19]} 49. Rh6+ {[%clk 0:00:06]}  Kxf5 {[%clk 0:00:19]} 50. Na8 {[%clk 0:00:07]}  Rc8 {[%clk 0:00:19]} 51. Nb6 {[%clk 0:00:07]}  Rc7 {[%clk 0:00:17]} 52. Ke2 {[%clk 0:00:05]}  Nd4+ {[%clk 0:00:16]} 53. Kd2 {[%clk 0:00:05]}  Rg3 {[%clk 0:00:14]} 54. Rh5+ {[%clk 0:00:05]}  Kg6 {[%clk 0:00:14]} 55. Rhxe5 {[%clk 0:00:04]}  Nf3+ {[%clk 0:00:13]} 56. Kc2 {[%clk 0:00:05]}  Nxe5 {[%clk 0:00:14]} 57. Rxe5 {[%clk 0:00:06]}  Rg5 {[%clk 0:00:14]} 58. Re1 {[%clk 0:00:01]}  Rgxc5+ {[%clk 0:00:14]} 59. Kb3 {[%clk 0:00:02]}  R5c6 {[%clk 0:00:14]} 60. Nd5 {[%clk 0:00:02]}  Rc3+ {[%clk 0:00:14]} 61. Nxc3 {[%clk 0:00:02]}  bxc3 {[%clk 0:00:13]} 62. Kc2 {[%clk 0:00:02]}  Kf6 {[%clk 0:00:13]} 63. Kd3 {[%clk 0:00:01]}  e5 {[%clk 0:00:13]} 0-1


[Site "https://www.chess.com"]

[Event "Titled Tuesday Blitz May 31 Early 2022"]
[White "Vlachos, Anatole"]
[Black "Guseinov, Gadir"]
[WhiteFideId "26093189"]
[BlackFideId "13401378"]
[WhiteElo "2361"]
[BlackElo "2581"]
[Result "0-1"]
[Round "03"]
[TimeControl "180+1"]
[Date "2022.05.31"]
[WhiteClock "0:00:02"]
[BlackClock "0:00:15"]

1. Nf3 {[%clk 0:03:00]}  g6 {[%clk 0:02:59]} 2. g3 {[%clk 0:03:00]}  Bg7 {[%clk 0:02:59]} 3. Bg2 {[%clk 0:03:01]}  d6 {[%clk 0:02:59]} 4. O-O {[%clk 0:03:02]}  e5 {[%clk 0:03:00]} 5. c4 {[%clk 0:03:01]}  f5 {[%clk 0:03:00]} 6. Nc3 {[%clk 0:03:01]}  Nf6 {[%clk 0:03:00]} 7. d3 {[%clk 0:03:00]}  O-O {[%clk 0:03:00]} 8. Rb1 {[%clk 0:02:58]}  a5 {[%clk 0:02:58]} 9. a3 {[%clk 0:02:59]}  Nh5 {[%clk 0:02:58]} 10. Qc2 {[%clk 0:02:58]}  f4 {[%clk 0:02:54]} 11. b4 {[%clk 0:02:58]}  axb4 {[%clk 0:02:54]} 12. axb4 {[%clk 0:02:59]}  Nc6 {[%clk 0:02:54]} 13. b5 {[%clk 0:02:56]}  Ne7 {[%clk 0:02:54]} 14. Ne4 {[%clk 0:02:51]}  Kh8 {[%clk 0:02:52]} 15. Bb2 {[%clk 0:02:49]}  Bg4 {[%clk 0:02:51]} 16. Ra1 {[%clk 0:02:49]}  Rxa1 {[%clk 0:02:49]} 17. Rxa1 {[%clk 0:02:50]}  Nf5 {[%clk 0:02:46]} 18. Ra7 {[%clk 0:02:42]}  b6 {[%clk 0:02:46]} 19. Qa4 {[%clk 0:02:37]}  h6 {[%clk 0:02:28]} 20. Rb7 {[%clk 0:02:29]}  Kh7 {[%clk 0:01:53]} 21. Qa7 {[%clk 0:02:29]}  Rf7 {[%clk 0:01:49]} 22. Rb8 {[%clk 0:02:29]}  Qe7 {[%clk 0:01:47]} 23. Qa8 {[%clk 0:02:22]}  Rf8 {[%clk 0:01:39]} 24. Rxf8 {[%clk 0:02:16]}  Qxf8 {[%clk 0:01:39]} 25. Qxf8 {[%clk 0:01:39]}  Bxf8 {[%clk 0:01:40]} 26. Nc3 {[%clk 0:01:36]}  Nf6 {[%clk 0:01:27]} 27. Nd2 {[%clk 0:01:33]}  Nd4 {[%clk 0:01:21]} 28. Kf1 {[%clk 0:01:33]}  g5 {[%clk 0:01:11]} 29. Nde4 {[%clk 0:01:14]}  Ne8 {[%clk 0:01:01]} 30. h3 {[%clk 0:00:50]}  Bc8 {[%clk 0:00:54]} 31. e3 {[%clk 0:00:49]}  fxe3 {[%clk 0:00:49]} 32. fxe3 {[%clk 0:00:49]}  Nf5 {[%clk 0:00:48]} 33. Nd5 {[%clk 0:00:45]}  Kg7 {[%clk 0:00:45]} 34. Kf2 {[%clk 0:00:39]}  Kf7 {[%clk 0:00:44]} 35. Bf3 {[%clk 0:00:35]}  Nfg7 {[%clk 0:00:43]} 36. Bg4 {[%clk 0:00:27]}  Bxg4 {[%clk 0:00:42]} 37. hxg4 {[%clk 0:00:28]}  Be7 {[%clk 0:00:43]} 38. Kf3 {[%clk 0:00:27]}  Bd8 {[%clk 0:00:43]} 39. Nb4 {[%clk 0:00:19]}  Ne6 {[%clk 0:00:42]} 40. Nc3 {[%clk 0:00:18]}  Be7 {[%clk 0:00:38]} 41. Nc6 {[%clk 0:00:17]}  Nf6 {[%clk 0:00:37]} 42. Nd5 {[%clk 0:00:16]}  Nxd5 {[%clk 0:00:29]} 43. cxd5 {[%clk 0:00:17]}  Nc5 {[%clk 0:00:26]} 44. Ke2 {[%clk 0:00:13]}  Bf6 {[%clk 0:00:19]} 45. Ba3 {[%clk 0:00:08]}  Nd7 {[%clk 0:00:16]} 46. Kf3 {[%clk 0:00:08]}  Kg6 {[%clk 0:00:17]} 47. Bc1 {[%clk 0:00:03]}  Nc5 {[%clk 0:00:15]} 48. Ke2 {[%clk 0:00:03]}  h5 {[%clk 0:00:15]} 49. gxh5+ {[%clk 0:00:04]}  Kxh5 {[%clk 0:00:15]} 50. Ba3 {[%clk 0:00:04]}  Na4 {[%clk 0:00:14]} 51. Kf3 {[%clk 0:00:03]}  Nc3 {[%clk 0:00:14]} 52. Nb4 {[%clk 0:00:02]}  Nxb5 {[%clk 0:00:14]} 53. Bb2 {[%clk 0:00:02]}  e4+ {[%clk 0:00:14]} 54. dxe4 {[%clk 0:00:02]}  Bxb2 {[%clk 0:00:15]} 0-1


[Site "https://www.chess.com"]

[Event "Titled Tuesday Blitz May 31 Early 2022"]
[White "Xiong, Jeffery"]
[Black "Kaasen, Tor Fredrik"]
[WhiteFideId "2047640"]
[BlackFideId "1516647"]
[WhiteElo "2727"]
[BlackElo "2335"]
[Result "0-1"]
[Round "03"]
[TimeControl "180+1"]
[Date "2022.05.31"]
[WhiteClock "0:01:21"]
[BlackClock "0:01:15"]

1. e4 {[%clk 0:02:31]}  c5 {[%clk 0:02:59]} 2. Nf3 {[%clk 0:02:31]}  d6 {[%clk 0:03:00]} 3. Nc3 {[%clk 0:02:32]}  Nf6 {[%clk 0:03:00]} 4. d4 {[%clk 0:02:32]}  cxd4 {[%clk 0:03:00]} 5. Qxd4 {[%clk 0:02:33]}  Nc6 {[%clk 0:02:59]} 6. Qd3 {[%clk 0:02:33]}  g6 {[%clk 0:02:58]} 7. Nd5 {[%clk 0:02:33]}  Bg7 {[%clk 0:02:55]} 8. c3 {[%clk 0:02:34]}  O-O {[%clk 0:02:54]} 9. Bg5 {[%clk 0:02:34]}  Nd7 {[%clk 0:02:27]} 10. Qe3 {[%clk 0:02:24]}  Re8 {[%clk 0:02:24]} 11. h4 {[%clk 0:02:04]}  f6 {[%clk 0:02:02]} 12. Bh6 {[%clk 0:02:01]}  e6 {[%clk 0:02:02]} 13. Bxg7 {[%clk 0:01:57]}  exd5 {[%clk 0:02:02]} 14. O-O-O {[%clk 0:01:39]}  Kxg7 {[%clk 0:01:57]} 15. Rxd5 {[%clk 0:01:39]}  h5 {[%clk 0:01:39]} 16. Rxd6 {[%clk 0:01:31]}  Qe7 {[%clk 0:01:39]} 17. Qd2 {[%clk 0:01:31]}  Nc5 {[%clk 0:01:36]} 18. e5 {[%clk 0:01:30]}  fxe5 {[%clk 0:01:32]} 19. Ng5 {[%clk 0:01:25]}  Bf5 {[%clk 0:01:27]} 20. g4 {[%clk 0:01:25]}  Rad8 {[%clk 0:01:24]} 21. Rxd8 {[%clk 0:01:20]}  Rxd8 {[%clk 0:01:25]} 22. Qe3 {[%clk 0:01:21]}  Bxg4 {[%clk 0:01:18]} 23. Bh3 {[%clk 0:01:21]}  Rd3 {[%clk 0:01:15]} 0-1


[Site "https://www.chess.com"]

[Event "Titled Tuesday Blitz May 31 Early 2022"]
[White "Yuan, Qingyu"]
[Black "Mickiewicz, Piotr"]
[WhiteFideId "8609772"]
[BlackFideId "1114891"]
[WhiteElo "2359"]
[BlackElo "2223"]
[Result "1-0"]
[Round "03"]
[TimeControl "180+1"]
[Date "2022.05.31"]
[WhiteClock "0:00:10"]
[BlackClock "0:00:18"]

1. e4 {[%clk 0:03:00]}  c5 {[%clk 0:02:59]} 2. Nf3 {[%clk 0:03:01]}  e6 {[%clk 0:02:59]} 3. b3 {[%clk 0:03:01]}  Nc6 {[%clk 0:02:57]} 4. Bb2 {[%clk 0:03:00]}  d6 {[%clk 0:02:56]} 5. d4 {[%clk 0:02:59]}  cxd4 {[%clk 0:02:55]} 6. Nxd4 {[%clk 0:02:59]}  Bd7 {[%clk 0:02:52]} 7. Nd2 {[%clk 0:02:52]}  Nf6 {[%clk 0:02:52]} 8. Bd3 {[%clk 0:02:51]}  Be7 {[%clk 0:02:50]} 9. Nxc6 {[%clk 0:02:49]}  Bxc6 {[%clk 0:02:48]} 10. Qe2 {[%clk 0:02:45]}  O-O {[%clk 0:02:47]} 11. O-O-O {[%clk 0:02:44]}  Qa5 {[%clk 0:02:33]} 12. Kb1 {[%clk 0:02:42]}  b5 {[%clk 0:02:32]} 13. f4 {[%clk 0:02:33]}  Rfd8 {[%clk 0:02:19]} 14. g4 {[%clk 0:02:22]}  d5 {[%clk 0:02:18]} 15. e5 {[%clk 0:02:14]}  Nd7 {[%clk 0:02:09]} 16. f5 {[%clk 0:02:13]}  Ba3 {[%clk 0:02:03]} 17. Ba1 {[%clk 0:02:06]}  Nc5 {[%clk 0:02:02]} 18. g5 {[%clk 0:01:32]}  Nxd3 {[%clk 0:01:50]} 19. Qxd3 {[%clk 0:01:30]}  exf5 {[%clk 0:01:46]} 20. Qxf5 {[%clk 0:01:19]}  Bd7 {[%clk 0:01:46]} 21. e6 {[%clk 0:01:17]}  Bxe6 {[%clk 0:01:45]} 22. Qe5 {[%clk 0:01:15]}  d4 {[%clk 0:01:39]} 23. Bxd4 {[%clk 0:01:06]}  Bf8 {[%clk 0:01:21]} 24. Bc3 {[%clk 0:00:42]}  Qb6 {[%clk 0:01:16]} 25. Ne4 {[%clk 0:00:39]}  Rac8 {[%clk 0:01:07]} 26. h4 {[%clk 0:00:30]}  b4 {[%clk 0:01:02]} 27. Bb2 {[%clk 0:00:28]}  Qc6 {[%clk 0:01:02]} 28. Rc1 {[%clk 0:00:14]}  Bd5 {[%clk 0:00:50]} 29. Ng3 {[%clk 0:00:12]}  Bxh1 {[%clk 0:00:35]} 30. Nf5 {[%clk 0:00:12]}  Qe6 {[%clk 0:00:18]} 31. Nh6+ {[%clk 0:00:10]} 1-0


[Site "https://www.chess.com"]

[Event "Titled Tuesday Blitz May 31 Early 2022"]
[White "Zhigalko, Sergei"]
[Black "Wagner, Dennis"]
[WhiteFideId "13502956"]
[BlackFideId "24650684"]
[WhiteElo "2662"]
[BlackElo "2355"]
[Result "0-1"]
[Round "03"]
[TimeControl "180+1"]
[Date "2022.05.31"]
[WhiteClock "0:00:05"]
[BlackClock "0:00:14"]

1. e4 {[%clk 0:03:00]}  e5 {[%clk 0:03:00]} 2. Nf3 {[%clk 0:02:57]}  Nc6 {[%clk 0:03:01]} 3. Bc4 {[%clk 0:02:56]}  Nf6 {[%clk 0:03:01]} 4. d3 {[%clk 0:02:56]}  Bc5 {[%clk 0:03:01]} 5. O-O {[%clk 0:02:56]}  O-O {[%clk 0:03:01]} 6. Nbd2 {[%clk 0:02:57]}  a5 {[%clk 0:02:58]} 7. c3 {[%clk 0:02:57]}  d6 {[%clk 0:02:58]} 8. h3 {[%clk 0:02:56]}  Be6 {[%clk 0:02:57]} 9. Bb5 {[%clk 0:02:55]}  Ba7 {[%clk 0:02:57]} 10. Re1 {[%clk 0:02:54]}  Ne7 {[%clk 0:02:57]} 11. Nf1 {[%clk 0:02:51]}  c6 {[%clk 0:02:57]} 12. Ba4 {[%clk 0:02:51]}  Ng6 {[%clk 0:02:58]} 13. Ng3 {[%clk 0:02:51]}  d5 {[%clk 0:02:57]} 14. exd5 {[%clk 0:02:38]}  Nxd5 {[%clk 0:02:58]} 15. Ng5 {[%clk 0:02:27]}  Bd7 {[%clk 0:02:48]} 16. Bb3 {[%clk 0:02:05]}  h6 {[%clk 0:02:47]} 17. Nf3 {[%clk 0:02:01]}  Qc7 {[%clk 0:02:44]} 18. d4 {[%clk 0:01:52]}  exd4 {[%clk 0:02:29]} 19. Nxd4 {[%clk 0:01:51]}  Ndf4 {[%clk 0:02:24]} 20. Qf3 {[%clk 0:01:46]}  c5 {[%clk 0:02:10]} 21. Ndf5 {[%clk 0:01:30]}  c4 {[%clk 0:02:09]} 22. Bxf4 {[%clk 0:01:11]}  Nxf4 {[%clk 0:02:00]} 23. Bxc4 {[%clk 0:00:31]}  Qxc4 {[%clk 0:01:44]} 24. Re4 {[%clk 0:00:31]}  Nxh3+ {[%clk 0:00:51]} 25. gxh3 {[%clk 0:00:31]}  Qc5 {[%clk 0:00:52]} 26. Rd1 {[%clk 0:00:17]}  Bc6 {[%clk 0:00:46]} 27. Rdd4 {[%clk 0:00:06]}  Bxe4 {[%clk 0:00:36]} 28. Rxe4 {[%clk 0:00:06]}  Rae8 {[%clk 0:00:33]} 29. Rg4 {[%clk 0:00:02]}  g6 {[%clk 0:00:29]} 30. Nxh6+ {[%clk 0:00:02]}  Kh7 {[%clk 0:00:26]} 31. Nxf7 {[%clk 0:00:03]}  Qxf2+ {[%clk 0:00:21]} 32. Qxf2 {[%clk 0:00:04]}  Bxf2+ {[%clk 0:00:21]} 33. Kxf2 {[%clk 0:00:04]}  Rxf7+ {[%clk 0:00:22]} 34. Kg2 {[%clk 0:00:05]}  Rfe7 {[%clk 0:00:14]} 35. Kf3 {[%clk 0:00:05]}  Re3+ {[%clk 0:00:14]} 36. Kf2 {[%clk 0:00:05]}  R3e6 {[%clk 0:00:15]} 37. Rd4 {[%clk 0:00:02]}  R8e7 {[%clk 0:00:14]} 38. Kf3 {[%clk 0:00:02]}  Rf6+ {[%clk 0:00:14]} 39. Kg4 {[%clk 0:00:01]}  Rb6 {[%clk 0:00:15]} 40. b3 {[%clk 0:00:01]}  Rbe6 {[%clk 0:00:14]} 41. c4 {[%clk 0:00:01]}  Re1 {[%clk 0:00:14]} 42. h4 {[%clk 0:00:01]}  Rg1 {[%clk 0:00:13]} 43. Kh3 {[%clk 0:00:01]}  Re3 {[%clk 0:00:13]} 44. Rg4 {[%clk 0:00:01]}  Ra1 {[%clk 0:00:12]} 45. h5 {[%clk 0:00:01]}  gxh5 {[%clk 0:00:12]} 46. Rg5 {[%clk 0:00:01]}  Rxa2 {[%clk 0:00:09]} 47. Rxh5+ {[%clk 0:00:01]}  Kg6 {[%clk 0:00:10]} 48. Rh8 {[%clk 0:00:01]}  Rxb3 {[%clk 0:00:10]} 49. Rg8+ {[%clk 0:00:01]}  Kf7 {[%clk 0:00:10]} 50. Rg5 {[%clk 0:00:01]}  Raa3 {[%clk 0:00:11]} 51. Kh4 {[%clk 0:00:01]}  Rxg3 {[%clk 0:00:11]} 52. Rxg3 {[%clk 0:00:02]}  Rxg3 {[%clk 0:00:12]} 53. Kxg3 {[%clk 0:00:03]}  a4 {[%clk 0:00:12]} 54. Kf4 {[%clk 0:00:03]}  a3 {[%clk 0:00:13]} 55. Ke3 {[%clk 0:00:04]}  a2 {[%clk 0:00:14]} 56. Kd4 {[%clk 0:00:05]}  a1=Q+ {[%clk 0:00:14]} 0-1


[Site "https://www.chess.com"]